{"text_format":"1","workbook":"xlsx","n_sheets":7,"sheets":["Well Information","Pump","Kill Sheet","Pressure Chart","Sheet6","Pg 1-2","Pg 3-4"],"not_rendered":{"charts":2,"images":4,"macros":1,"external_links":0,"defined_names":1,"comments":0,"pivot_tables":0},"unopened":[{"sheet":"Pressure Chart","index":3,"reason":"not_a_worksheet"}],"bounds":{"document_bytes":16777216,"sheet_cells":100000,"rows_first":2000,"rows_last":500,"rows_between":2000,"halvings":0,"cell_chars":16384,"cell_head_chars":4096},"cells_cut":0,"cells_raw":0,"read":"whole","date_system":"1900"}

{"sheet":"Well Information","index":0,"n_rows":21,"n_cols":8,"rows_kept":21,"cut":false,"hidden":false,"merged":[[1,4,1,5],[6,1,8,2],[1,1,5,2],[19,4,19,5],[4,7,4,8],[17,7,17,8],[14,1,14,2],[12,7,12,8],[8,7,8,8],[13,4,13,5],[10,1,10,2],[7,4,7,5]]}
[]
[null,{"$error":"#VALUE!"},null,null,"Shut-In Information"]
[null,null,null,null,"SIDPP (psi)"]
[null,null,null,null,"SICP (psi)"]
[null,null,null,null,"Current Mud Weight (ppg)",null,null,"Casing Information"]
[null,null,null,null,"Pit Gain (bbls)",null,null,"OD of Casing (in)"]
[null,"Well Information\nWait & Weight Method\nDeviated and Horizontal Wells",null,null,null,null,null,"ID of Casing (in)"]
[null,null,null,null,"Measured Depths"]
[null,null,null,null,"MD of Casing (ft)",null,null,"Drill Pipe Information"]
[null,null,null,null,"MD of Kick Off Point (ft)",null,null,"OD of Drill Pipe (in)"]
[null,"Formation Test",null,null,"MD of End of Build (ft)",null,null,"ID of Drill Pipe (in)"]
[null,"Leak Off or FIT Pressure (psi)",null,null,"MD of Well (ft)"]
[null,"Test Mud Density (ppg)",null,null,null,null,null,"HWDP Information"]
[null,null,null,null,"True Vertical Depths",null,null,"OD of HWDP (in)"]
[null,"Pump Information",null,null,"TVD of Casing (ft)",null,null,"ID of HWDP (in)"]
[null,"Pump Type","Triplex",null,"TVD of Kick Off Point (ft)",null,null,"Length of HWDP (ft)"]
[null,"Liner Size (in)",null,null,"TVD of End of Build (ft)"]
[null,"Stroke Length (in)",null,null,"TVD of Well (ft)",null,null,"Drill Collars Information"]
[null,"Pump Efficiency",null,null,null,null,null,"OD of Drill Collars (in)"]
[null,"Slow Circulating Rate (psi)",null,null,"Open Hole Diameter",null,null,"ID of Drill Collars (in)"]
[null,"Pump Speed during Kill (stks/min)",null,null,"Bit Size (in)",null,null,"Length of Drill Collars (ft)"]

{"sheet":"Pump","index":1,"n_rows":3,"n_cols":5,"rows_kept":3,"cut":false,"hidden":true,"merged":[]}
["Pump Type"]
["Triplex",null,null,null,{"$f":"ROUND(0.000243*'Well Information'!C17^2*'Well Information'!C18*'Well Information'!C19,4)","v":0}]
["Quintuplex",null,null,null,{"$f":"ROUND(0.000405*'Well Information'!C17^2*'Well Information'!C18*'Well Information'!C19,4)","v":0}]

{"sheet":"Kill Sheet","index":2,"n_rows":30,"n_cols":66,"rows_kept":30,"cut":false,"hidden":false,"merged":[[11,38,11,40],[11,41,11,44],[11,45,11,47],[13,38,13,40],[13,41,13,44],[13,45,13,47],[14,38,14,40],[14,41,14,44],[17,41,17,44],[17,45,17,47],[7,45,7,47],[11,48,11,51],[12,41,12,44],[12,45,12,47],[12,48,12,51],[9,41,9,44],[10,41,10,44],[10,45,10,47],[19,45,19,47],[19,48,19,51],[16,41,16,44],[16,45,16,47],[16,48,16,51],[2,38,2,51],[4,45,4,47],[4,48,4,51],[4,38,4,40],[3,45,3,51],[5,48,5,51],[6,38,6,40],[6,41,6,44],[6,45,6,47],[6,48,6,51],[4,41,4,44],[3,38,3,44],[2,22,2,35],[9,16,9,18],[9,3,9,9],[10,3,10,9],[10,10,10,12],[10,13,10,15],[10,16,10,18],[8,16,8,18],[6,2,6,19],[6,22,6,28],[4,22,4,28],[4,29,4,35],[3,29,3,35],[3,22,3,28],[6,29,6,35],[7,22,7,28],[7,29,7,35],[8,13,8,15],[8,10,8,12],[2,10,4,19],[2,2,4,9],[13,10,13,12],[13,13,13,15],[14,3,14,9],[14,10,14,12],[14,13,14,15],[9,10,9,12],[13,22,13,28],[14,16,14,18],[11,3,11,9],[11,10,11,12],[11,13,11,15],[11,16,11,18],[13,16,13,18],[19,65,19,67],[17,65,17,67],[10,38,10,40],[7,54,7,56],[9,22,9,35],[10,22,10,28],[10,29,10,35],[11,22,11,28],[11,29,11,35],[12,22,12,28],[12,29,12,35],[19,22,19,28],[19,29,19,35],[16,22,16,35],[17,22,17,28],[17,29,17,35],[18,22,18,28],[18,29,18,35],[13,29,13,35],[14,22,14,28],[14,29,14,35],[11,54,11,56],[9,45,9,47],[14,45,14,47],[18,10,18,12],[18,13,18,15],[18,16,18,18],[15,3,15,9],[15,10,15,12],[18,65,18,67],[18,38,18,40],[16,38,16,40],[17,38,17,40],[17,54,17,64],[18,54,18,64],[2,54,2,67],[3,54,3,60],[3,61,3,67],[4,54,4,56],[4,57,4,60],[4,61,4,63],[4,64,4,67],[29,2,29,67],[27,2,27,67],[25,2,25,67],[23,2,23,67],[12,38,12,40],[7,38,7,40],[8,38,8,40],[9,38,9,40],[7,48,7,51],[9,48,9,51],[10,48,10,51],[13,48,13,51],[14,48,14,51],[15,48,15,51],[17,10,17,12],[17,13,17,15],[9,13,9,15],[11,57,11,60],[11,61,11,63],[11,64,11,67],[12,54,12,56],[12,57,12,60],[12,61,12,63],[12,64,12,67],[9,54,9,56],[9,57,9,60],[9,61,9,63],[9,64,9,67],[10,54,10,56],[10,57,10,60],[10,61,10,63],[10,64,10,67],[19,54,19,64],[22,2,22,67],[14,54,14,56],[14,57,14,60],[14,61,14,63],[14,64,14,67],[13,54,13,56],[13,57,13,60],[13,61,13,63],[13,64,13,67],[16,54,16,67],[15,13,15,15],[15,16,15,18],[15,38,15,40],[15,41,15,44],[15,45,15,47],[17,48,17,51],[18,41,18,44],[18,45,18,47],[18,48,18,51],[19,38,19,40],[19,41,19,44],[17,16,17,18],[18,3,18,9],[8,64,8,67],[5,22,5,28],[5,38,5,40],[5,29,5,35],[5,41,5,44],[5,45,5,47],[8,41,8,44],[8,45,8,47],[8,48,8,51],[8,54,8,56],[8,57,8,60],[8,61,8,63],[7,57,7,60],[7,61,7,63],[7,64,7,67],[5,54,5,56],[5,57,5,60],[5,61,5,63],[5,64,5,67],[6,54,6,56],[6,57,6,60],[6,61,6,63],[6,64,6,67],[7,41,7,44]]}
[]
[]
[null,null,{"$error":"#VALUE!"},null,null,null,null,null,null,null,"Kill Sheet\nWait & Weight Method\nDeviated and Horizontal Wells",null,null,null,null,null,null,null,null,null,null,null,"Kick Data",null,null,null,null,null,null,null,null,null,null,null,null,null,null,null,"Deviated/Horizontal Drill Pipe Pressure Schedule",null,null,null,null,null,null,null,null,null,null,null,null,null,null,null,"Vertical Drill Pipe Pressure Schedule"]
[null,null,null,null,null,null,null,null,null,null,null,null,null,null,null,null,null,null,null,null,null,null,"SIDPP (psi)",null,null,null,null,null,null,{"$f":"IF('Well Information'!F3=0,\" \",'Well Information'!F3)","v":" "},null,null,null,null,null,null,null,null,"Strokes",null,null,null,null,null,null,"Pressure",null,null,null,null,null,null,null,null,"Strokes",null,null,null,null,null,null,"Pressure"]
[null,null,null,null,null,null,null,null,null,null,null,null,null,null,null,null,null,null,null,null,null,null,"SICP (psi)",null,null,null,null,null,null,{"$f":"IF('Well Information'!F3=0,\" \",'Well Information'!F4)","v":" "},null,null,null,null,null,null,null,null,null,null,null,0,null,null,null,"ICP",null,null,{"$f":"'Pg 3-4'!N57","v":" "},null,null,null,null,null,null,null,null,0,null,null,null,"ICP",null,null,{"$f":"AD19","v":" "}]
[null,null,null,null,null,null,null,null,null,null,null,null,null,null,null,null,null,null,null,null,null,null,"Pit Gain (bbl)",null,null,null,null,null,null,{"$f":"IF('Well Information'!F3=0,\" \",'Well Information'!F6)","v":" "},null,null,null,null,null,null,null,null,null,null,null,{"$f":"'Pg 3-4'!E58","v":" "},null,null,null,null,null,null,{"$f":"'Pg 3-4'!N58","v":" "},null,null,null,null,null,null,null,null,{"$f":"IF('Well Information'!F3=0,\" \",ROUNDDOWN(BF15/10,0))","v":" "},null,null,null,null,null,null,{"$f":"IF('Well Information'!F3=0,\" \",BM5-(ROUNDDOWN(($BM$5-$BM$15)/10,0)))","v":" "}]
[null,null,"Circulating Data",null,null,null,null,null,null,null,null,null,null,null,null,null,null,null,null,null,null,null,"MD of Well (ft)",null,null,null,null,null,null,{"$f":"IF('Well Information'!F3=0,\" \",'Well Information'!F12)","v":" "},null,null,null,null,null,null,null,null,null,null,null,{"$f":"'Pg 3-4'!E59","v":" "},null,null,null,null,null,null,{"$f":"'Pg 3-4'!N59","v":" "},null,null,null,null,null,null,null,null,{"$f":"IF('Well Information'!F3=0,\" \",BF6+(ROUNDDOWN($BF$15/10,0)))","v":" "},null,null,null,null,null,null,{"$f":"IF('Well Information'!F3=0,\" \",BM6-(ROUNDDOWN(($BM$5-$BM$15)/10,0)))","v":" "}]
[null,null,null,null,null,null,null,null,null,null,null,null,null,null,null,null,null,null,null,null,null,null,"TVD of Well (ft)",null,null,null,null,null,null,{"$f":"IF('Well Information'!F3=0,\" \",'Well Information'!F18)","v":" "},null,null,null,null,null,null,null,null,null,null,null,{"$f":"'Pg 3-4'!E60","v":" "},null,null,null,null,null,null,{"$f":"'Pg 3-4'!N60","v":" "},null,null,null,null,null,null,null,null,{"$f":"IF('Well Information'!F3=0,\" \",BF7+(ROUNDDOWN($BF$15/10,0)))","v":" "},null,null,null,null,null,null,{"$f":"IF('Well Information'!F3=0,\" \",BM7-(ROUNDDOWN(($BM$5-$BM$15)/10,0)))","v":" "}]
[null,null,null,null,null,null,null,null,null,null,"Volume\n(bbls)",null,null,"Pump \nStrokes",null,null,"Time\n(min)",null,null,null,null,null,null,null,null,null,null,null,null,null,null,null,null,null,null,null,null,null,null,null,null,{"$f":"'Pg 3-4'!E61","v":" "},null,null,null,null,null,null,{"$f":"'Pg 3-4'!N61","v":" "},null,null,null,null,null,null,null,null,{"$f":"IF('Well Information'!F3=0,\" \",BF8+(ROUNDDOWN($BF$15/10,0)))","v":" "},null,null,null,null,null,null,{"$f":"IF('Well Information'!F3=0,\" \",BM8-(ROUNDDOWN(($BM$5-$BM$15)/10,0)))","v":" "}]
[null,null,null,"From Surface to KOP",null,null,null,null,null,null,{"$f":"IF('Well Information'!F3=0,\" \",'Pg 3-4'!AB3)","v":" "},null,null,{"$f":"AP10","v":" "},null,null,{"$f":"IF('Well Information'!F3=0,\" \",ROUNDUP(N10/$AD$18,0))","v":" "},null,null,null,null,null,"Fluid and Well Pressure Considerations",null,null,null,null,null,null,null,null,null,null,null,null,null,null,null,"Strokes \nto KOP",null,null,{"$f":"'Pg 3-4'!E62","v":" "},null,null,null,"KOP CP",null,null,{"$f":"'Pg 3-4'!N62","v":" "},null,null,null,null,null,null,null,null,{"$f":"IF('Well Information'!F3=0,\" \",BF9+(ROUNDDOWN($BF$15/10,0)))","v":" "},null,null,null,null,null,null,{"$f":"IF('Well Information'!F3=0,\" \",BM9-(ROUNDDOWN(($BM$5-$BM$15)/10,0)))","v":" "}]
[null,null,null,"From Surface to EOB",null,null,null,null,null,null,{"$f":"IF('Well Information'!F3=0,\" \",'Pg 3-4'!AB4+'Pg 3-4'!AB3)","v":" "},null,null,{"$f":"AP15","v":" "},null,null,{"$f":"IF('Well Information'!F3=0,\" \",ROUNDUP(N11/$AD$18,0))","v":" "},null,null,null,null,null,"MAMW (ppg)",null,null,null,null,null,null,{"$f":"'Pg 1-2'!AP13","v":" "},null,null,null,null,null,null,null,null,null,null,null,{"$f":"'Pg 3-4'!E63","v":" "},null,null,null,null,null,null,{"$f":"'Pg 3-4'!N63","v":" "},null,null,null,null,null,null,null,null,{"$f":"IF('Well Information'!F3=0,\" \",BF10+(ROUNDDOWN($BF$15/10,0)))","v":" "},null,null,null,null,null,null,{"$f":"IF('Well Information'!F3=0,\" \",BM10-(ROUNDDOWN(($BM$5-$BM$15)/10,0)))","v":" "}]
[null,null,null,"From Surface to Bit",null,null,null,null,null,null,{"$f":"IF('Well Information'!F3=0,\" \",'Pg 3-4'!AB3+'Pg 3-4'!AB4+'Pg 3-4'!AB7+'Pg 3-4'!AB8+'Pg 3-4'!AB9)","v":" "},null,null,{"$f":"'Pg 3-4'!V13","v":" "},null,null,{"$f":"IF('Well Information'!F3=0,\" \",ROUNDUP(N12/$AD$18,0))","v":" "},null,null,null,null,null,"MAASP w/ Current Mud (psi)",null,null,null,null,null,null,{"$f":"'Pg 1-2'!AP22","v":" "},null,null,null,null,null,null,null,null,null,null,null,{"$f":"'Pg 3-4'!E64","v":" "},null,null,null,null,null,null,{"$f":"'Pg 3-4'!N64","v":" "},null,null,null,null,null,null,null,null,{"$f":"IF('Well Information'!F3=0,\" \",BF11+(ROUNDDOWN($BF$15/10,0)))","v":" "},null,null,null,null,null,null,{"$f":"IF('Well Information'!F3=0,\" \",BM11-(ROUNDDOWN(($BM$5-$BM$15)/10,0)))","v":" "}]
[null,null,null,null,null,null,null,null,null,null,null,null,null,null,null,null,null,null,null,null,null,null,"MAASP with Kill Mud (psi)",null,null,null,null,null,null,{"$f":"'Pg 1-2'!AP32","v":" "},null,null,null,null,null,null,null,null,null,null,null,{"$f":"'Pg 3-4'!E65","v":" "},null,null,null,null,null,null,{"$f":"'Pg 3-4'!N65","v":" "},null,null,null,null,null,null,null,null,{"$f":"IF('Well Information'!F3=0,\" \",BF12+(ROUNDDOWN($BF$15/10,0)))","v":" "},null,null,null,null,null,null,{"$f":"IF('Well Information'!F3=0,\" \",BM12-(ROUNDDOWN(($BM$5-$BM$15)/10,0)))","v":" "}]
[null,null,null,null,null,null,null,null,null,null,"Volume\n(bbls)",null,null,"Pump \nStrokes",null,null,"Time\n(min)",null,null,null,null,null,"Current Mud Weight (ppg)",null,null,null,null,null,null,{"$f":"IF('Well Information'!F3=0,\" \",'Well Information'!F5)","v":" "},null,null,null,null,null,null,null,null,null,null,null,{"$f":"'Pg 3-4'!E66","v":" "},null,null,null,null,null,null,{"$f":"'Pg 3-4'!N66","v":" "},null,null,null,null,null,null,null,null,{"$f":"IF('Well Information'!F3=0,\" \",BF13+(ROUNDDOWN($BF$15/10,0)))","v":" "},null,null,null,null,null,null,{"$f":"IF('Well Information'!F3=0,\" \",BM13-(ROUNDDOWN(($BM$5-$BM$15)/10,0)))","v":" "}]
[null,null,null,"From Bit to Casing Shoe",null,null,null,null,null,null,{"$f":"IF('Well Information'!F3=0,\" \",'Pg 3-4'!AB21+'Pg 3-4'!AB20+'Pg 3-4'!AB19)","v":" "},null,null,{"$f":"'Pg 3-4'!AV22","v":" "},null,null,{"$f":"IF('Well Information'!F3=0,\" \",ROUNDUP(N15/$AD$18,0))","v":" "},null,null,null,null,null,"Kill Mud Weight (ppg)",null,null,null,null,null,null,{"$f":"'Pg 1-2'!AP27","v":" "},null,null,null,null,null,null,null,null,"Strokes \nto EOB",null,null,{"$f":"'Pg 3-4'!E67","v":" "},null,null,null,"EOB CP",null,null,{"$f":"'Pg 3-4'!N67","v":" "},null,null,null,null,null,"Strokes\nto Bit",null,null,{"$f":"N12","v":" "},null,null,null,"FCP",null,null,{"$f":"AD20","v":" "}]
[null,null,null,"From Bit to Surface",null,null,null,null,null,null,{"$f":"IF('Well Information'!F3=0,\" \",K15+'Pg 3-4'!AB23)","v":" "},null,null,{"$f":"'Pg 3-4'!AV24","v":" "},null,null,{"$f":"IF('Well Information'!F3=0,\" \",ROUNDUP(N16/$AD$18,0))","v":" "},null,null,null,null,null,null,null,null,null,null,null,null,null,null,null,null,null,null,null,null,null,null,null,null,{"$f":"'Pg 3-4'!E68","v":" "},null,null,null,null,null,null,{"$f":"'Pg 3-4'!N68","v":" "}]
[null,null,null,null,null,null,null,null,null,null,null,null,null,null,null,null,null,null,null,null,null,null,"Pump Data",null,null,null,null,null,null,null,null,null,null,null,null,null,null,null,null,null,null,{"$f":"'Pg 3-4'!E69","v":" "},null,null,null,null,null,null,{"$f":"'Pg 3-4'!N69","v":" "},null,null,null,null,null,"Difference between Horizontal and Vertical"]
[null,null,null,null,null,null,null,null,null,null,"Volume\n(bbls)",null,null,"Pump \nStrokes",null,null,"Time\n(min)",null,null,null,null,null,"Pump Speed (stks/min)",null,null,null,null,null,null,{"$f":"IF('Well Information'!F3=0,\" \",'Well Information'!C21)","v":" "},null,null,null,null,null,null,null,null,null,null,null,{"$f":"'Pg 3-4'!E70","v":" "},null,null,null,null,null,null,{"$f":"'Pg 3-4'!N70","v":" "},null,null,null,null,null,"Vertical Pressure Drop at EOB (psi)",null,null,null,null,null,null,null,null,null,null,{"$f":"IF('Well Information'!F3=0,\" \",((AD19-AD20)/BF15)*AP15)","v":" "}]
[null,null,null,"From Surface to Surface",null,null,null,null,null,null,{"$f":"IF('Well Information'!F3=0,\" \",K12+K16)","v":" "},null,null,{"$f":"IF('Well Information'!F3=0,\" \",N16+N12)","v":" "},null,null,{"$f":"IF('Well Information'!F3=0,\" \",ROUNDUP(N19/$AD$18,0))","v":" "},null,null,null,null,null,"ICP (psi)",null,null,null,null,null,null,{"$f":"'Pg 1-2'!V37","v":" "},null,null,null,null,null,null,null,null,null,null,null,{"$f":"'Pg 3-4'!E71","v":" "},null,null,null,null,null,null,{"$f":"'Pg 3-4'!N71","v":" "},null,null,null,null,null,"Vertical Circulating Pressure at EOB (psi)",null,null,null,null,null,null,null,null,null,null,{"$f":"IF('Well Information'!F3=0,\" \",AW5-BN18)","v":" "}]
[null,null,null,null,null,null,null,null,null,null,null,null,null,null,null,null,null,null,null,null,null,null,"FCP (psi)",null,null,null,null,null,null,{"$f":"'Pg 1-2'!AF42","v":" "},null,null,null,null,null,null,null,null,"Strokes\nto Bit",null,null,{"$f":"'Pg 3-4'!E72","v":" "},null,null,null,"FCP",null,null,{"$f":"'Pg 3-4'!N72","v":" "},null,null,null,null,null,"Pressure Difference at EOB (psi)",null,null,null,null,null,null,null,null,null,null,{"$f":"IF('Well Information'!F3=0,\" \",BN19-AW15)","v":" "}]
[]
[]
[null,null,"Procedure:"]
[null,null,{"$f":"IF('Well Information'!F3=0,\" \",Sheet6!G1)","v":" "}]
[]
[null,null,{"$f":"IF('Well Information'!F3=0,\" \",Sheet6!G3)","v":" "}]
[]
[null,null,{"$f":"IF('Well Information'!F3=0,\" \",Sheet6!G9)","v":" "}]
[]
[null,null,{"$f":"IF('Well Information'!F3=0,\" \",\"Once kill mud has reached the surface, hold casing pressure constant while bringing the pumps back down to 0 stks/min.\")","v":" "}]

{"sheet":"Sheet6","index":4,"n_rows":13,"n_cols":7,"rows_kept":13,"cut":false,"hidden":true,"merged":[]}
["Using choke adjustments, hold ",{"$f":"'Well Information'!F4","v":0},{"$f":"B1","v":0}," psi constant on the casing gauge until the kill speed of ",{"$f":"'Well Information'!C21","v":0}," stks/min is reached.",{"$f":"A1&B1&D1&E1&F1","v":"Using choke adjustments, hold 0 psi constant on the casing gauge until the kill speed of 0 stks/min is reached."}]
[]
["Once kill speed is reached, follow the drill pipe pressure schedule shown on this form, reducing pressure on the drill pipe gauge from the Initial Circulating Pressure of ",{"$f":"'Pg 3-4'!N57","v":" "},null," psi to the Final Circulating Pressure of ",{"$f":"'Kill Sheet'!AW20","v":" "}," psi.",{"$f":"A3&B3&D3&E3&F3","v":"Once kill speed is reached, follow the drill pipe pressure schedule shown on this form, reducing pressure on the drill pipe gauge from the Initial Circulating Pressure of   psi to the Final Circulating Pressure of   psi."}]
[]
[]
[null,null,null,null,null,null,{"$f":"G1&G2&G3","v":"Using choke adjustments, hold 0 psi constant on the casing gauge until the kill speed of 0 stks/min is reached.Once kill speed is reached, follow the drill pipe pressure schedule shown on this form, reducing pressure on the drill pipe gauge from the Initial Circulating Pressure of   psi to the Final Circulating Pressure of   psi."}]
[]
[]
["Once kill mud is in the annulus, continue holding ",{"$f":"E3","v":" "},null," psi on the drill pipe gauge until kill mud has reached the surface.",null,null,{"$f":"A9&B9&D9","v":"Once kill mud is in the annulus, continue holding   psi on the drill pipe gauge until kill mud has reached the surface."}]
[]
[]
[]
[null,null,null,null,null,null,{"$f":"G6&G8&G9","v":"Using choke adjustments, hold 0 psi constant on the casing gauge until the kill speed of 0 stks/min is reached.Once kill speed is reached, follow the drill pipe pressure schedule shown on this form, reducing pressure on the drill pipe gauge from the Initial Circulating Pressure of   psi to the Final Circulating Pressure of   psi.Once kill mud is in the annulus, continue holding   psi on the drill pipe gauge until kill mud has reached the surface."}]

{"sheet":"Pg 1-2","index":5,"n_rows":77,"n_cols":46,"rows_kept":77,"cut":false,"hidden":true,"merged":[[70,21,70,27],[70,31,70,37],[70,41,70,47],[69,21,69,27],[69,8,69,10],[76,1,76,7],[76,11,76,17],[76,21,76,27],[73,1,73,7],[73,11,73,17],[73,21,73,27],[74,1,74,54],[75,8,75,10],[75,18,75,20],[69,41,69,44],[69,45,69,47],[72,21,72,24],[72,25,72,27],[75,21,75,24],[75,25,75,27],[69,31,69,34],[69,35,69,37],[71,1,71,54],[72,8,72,10],[66,18,66,20],[67,1,67,7],[67,11,67,17],[67,21,67,27],[68,1,68,54],[63,38,63,40],[64,1,64,7],[64,11,64,17],[64,21,64,27],[64,31,64,37],[64,41,64,47],[63,8,63,10],[63,28,63,30],[65,1,65,54],[66,21,66,24],[66,25,66,27],[66,1,66,4],[66,5,66,7],[66,11,66,14],[66,15,66,17],[66,8,66,10],[59,11,59,17],[59,21,59,27],[55,21,55,24],[55,25,55,27],[58,21,58,24],[58,25,58,27],[62,1,62,54],[56,1,56,7],[56,11,56,17],[56,21,56,27],[57,1,57,54],[58,8,58,10],[58,1,58,4],[58,5,58,7],[58,11,58,14],[58,15,58,17],[46,38,46,40],[46,8,46,10],[52,28,52,30],[52,38,52,40],[53,31,53,37],[53,41,53,47],[54,1,54,54],[46,28,46,30],[46,41,46,44],[46,45,46,47],[49,21,49,24],[49,25,49,27],[52,41,52,44],[52,45,52,47],[46,31,46,34],[46,35,46,37],[46,21,46,24],[46,25,46,27],[52,31,52,34],[52,35,52,37],[50,21,50,27],[52,21,52,27],[53,1,53,7],[53,11,53,17],[31,38,31,40],[32,31,32,37],[32,41,32,47],[45,1,45,54],[42,1,42,7],[42,11,42,17],[42,21,42,27],[42,31,42,37],[41,8,41,10],[41,18,41,20],[41,28,41,30],[37,1,37,7],[37,11,37,17],[37,21,37,27],[32,11,32,17],[32,21,32,27],[35,1,35,54],[36,8,36,10],[36,18,36,20],[36,28,36,30],[36,1,36,4],[36,5,36,7],[31,31,31,34],[31,35,31,37],[22,1,22,7],[22,11,22,17],[22,21,22,27],[22,31,22,37],[22,41,22,47],[27,31,27,37],[27,41,27,47],[30,1,30,54],[25,1,25,54],[26,8,26,10],[26,11,26,17],[26,18,26,20],[26,38,26,40],[26,31,26,34],[26,35,26,37],[26,1,26,4],[26,5,26,7],[27,1,27,7],[27,11,27,17],[27,21,27,27],[26,21,26,24],[26,25,26,27],[16,1,16,4],[16,5,16,7],[16,21,16,24],[16,25,16,27],[17,1,17,7],[17,11,17,17],[17,21,17,27],[20,1,20,54],[21,8,21,10],[21,21,21,27],[21,1,21,4],[21,5,21,7],[21,11,21,14],[21,15,21,17],[21,41,21,44],[21,45,21,47],[21,28,21,30],[21,38,21,40],[21,31,21,34],[21,35,21,37],[12,35,12,37],[5,0,8,11],[6,12,8,25],[6,26,8,39],[6,40,8,53],[11,1,11,54],[12,8,12,10],[12,11,12,17],[12,18,12,20],[12,38,12,40],[36,15,36,17],[0,12,0,53],[1,12,1,25],[1,26,1,39],[1,40,1,53],[2,12,5,25],[2,26,5,39],[2,40,5,53],[15,1,15,54],[16,8,16,10],[16,11,16,17],[16,18,16,20],[13,1,13,7],[13,11,13,17],[13,21,13,27],[13,31,13,37],[13,41,13,47],[12,5,12,7],[12,1,12,4],[12,21,12,24],[12,25,12,27],[12,41,12,44],[12,45,12,47],[12,31,12,34],[41,1,41,4],[41,5,41,7],[41,31,41,34],[41,35,41,37],[31,41,31,44],[31,45,31,47],[36,21,36,24],[36,25,36,27],[26,41,26,44],[26,45,26,47],[41,11,41,14],[41,15,41,17],[41,21,41,24],[41,25,41,27],[31,8,31,10],[31,21,31,27],[31,28,31,30],[31,1,31,4],[31,5,31,7],[31,11,31,14],[31,15,31,17],[40,1,40,54],[32,1,32,7],[36,11,36,14],[52,8,52,10],[47,41,47,47],[48,1,48,54],[49,8,49,10],[49,18,49,20],[47,1,47,7],[63,41,63,44],[63,45,63,47],[63,31,63,34],[63,35,63,37],[63,21,63,24],[63,25,63,27],[47,11,47,17],[55,8,55,10],[63,1,63,4],[63,5,63,7],[63,11,63,14],[63,15,63,17],[47,21,47,27],[47,31,47,37],[55,18,55,20],[53,21,53,27],[58,18,58,20],[59,1,59,7],[72,18,72,20],[69,28,69,30],[69,38,69,40],[70,1,70,7],[70,11,70,17],[46,1,46,4],[46,5,46,7],[46,11,46,14],[46,15,46,17],[49,1,49,4],[49,5,49,7],[49,11,49,14],[49,15,49,17],[55,1,55,4],[55,5,55,7],[55,11,55,14],[55,15,55,17],[52,1,52,4],[52,5,52,7],[52,11,52,14],[52,15,52,17],[50,1,50,7],[50,11,50,17],[51,1,51,54],[75,1,75,4],[75,5,75,7],[75,11,75,14],[75,15,75,17],[69,1,69,4],[69,5,69,7],[69,11,69,14],[69,15,69,17],[72,1,72,4],[72,5,72,7],[72,11,72,14],[72,15,72,17]]}
[]
[null,null,null,null,null,null,null,null,null,null,null,null,"ROUNDING RULE # 1",null,null,null,null,null,null,null,null,null,null,null,null,null,"ROUNDING RULE # 2",null,null,null,null,null,null,null,null,null,null,null,null,null,"ROUNDING RULE # 3"]
[null,null,null,null,null,null,null,null,null,null,null,null,"Kill Weight Mud should ALWAYS ROUND UP to the next tenth of a ppg.",null,null,null,null,null,null,null,null,null,null,null,null,null,"Maximum Allowable Mud Weight should ALWAYS ROUND DOWN to the tenth of a ppg.\n",null,null,null,null,null,null,null,null,null,null,null,null,null,"Pressure Reduction Schedules should ALWAYS ROUND DOWN to the whole number."]
[]
[]
["Drilling \nKillsheet\nDeviated Wells"]
[null,null,null,null,null,null,null,null,null,null,null,null,"Examples:  \n13.429451 ppg → 13.5 ppg\n12.337548 ppg → 12.4 ppg\n13.600001 ppg → 13.7 ppg",null,null,null,null,null,null,null,null,null,null,null,null,null,"Examples:  \n18.675309 ppg → 18.6 ppg\n16.264375 ppg → 16.2 ppg\n12.599999 ppg → 12.5 ppg",null,null,null,null,null,null,null,null,null,null,null,null,null,"Examples:  \n39.5 psi/step → 39 psi/step\n19.8718 psi/100 stks → 19 psi/100 stks\n22.8 psi/step → 22 psi/step\n"]
[]
[]
[]
[]
[null,"Maximum Allowable Mud Weight (with Leak Off Pressure) ***REFERENCE ROUNDING RULE #2***"]
["(",{"$f":"'Well Information'!C12","v":0},null,null,null,"psi",null,null,"÷",null,null,5.1999999999999998E-2,null,null,null,null,null,null,"÷",null,null,{"$f":"'Well Information'!F15","v":0},null,null,null,"ft",null,null,") ","+",null,{"$f":"'Well Information'!C13","v":0},null,null,null,"ppg",null,null,"=",null,null,{"$f":"IF('Well Information'!F3=0, \" \", ROUNDDOWN(((B13/0.052/V13)+AF13), 1))","v":" "},null,null,null,"ppg"]
[null,"Surface Leak Off Pressure",null,null,null,null,null,null,null,null,null,null,null,null,null,null,null,null,null,null,null,"TVD of Casing Shoe",null,null,null,null,null,null,null,null,null,"Test Mud Weight",null,null,null,null,null,null,null,null,null,"MAMW"]
[]
[null,"Maximum Allowable Mud Weight (with Fracture Gradient) ***REFERENCE ROUNDING RULE #2***"]
[null,null,null,null,null,"psi/ft",null,null,"÷",null,null,5.1999999999999998E-2,null,null,null,null,null,null,"=",null,null,null,null,null,null,"ppg"]
[null,"Fracture Gradient",null,null,null,null,null,null,null,null,null,null,null,null,null,null,null,null,null,null,null,"MAMW"]
[]
[]
[null,"Maximum Allowable Annular Surface Pressure (Before the Kick)"]
["(",{"$f":"IF(V17=0,AP13,V17)","v":" "},null,null,null,"ppg",null,null,"–",null,null,{"$f":"'Well Information'!F5","v":0},null,null,null,"ppg",null,null,")","×",null,5.1999999999999998E-2,null,null,null,null,null,null,"×",null,null,{"$f":"V13","v":0},null,null,null,"ft",null,null,"=",null,null,{"$f":"IF('Well Information'!F3=0,\" \",ROUNDDOWN(((B22-L22)*0.052*AF22),0))","v":" "},null,null,null,"psi"]
[null,"MAMW",null,null,null,null,null,null,null,null,null,"Current Mud Weight",null,null,null,null,null,null,null,null,null,null,null,null,null,null,null,null,null,null,null,"TVD of Casing Shoe",null,null,null,null,null,null,null,null,null,"MAASP Before Kick"]
[]
[]
[null,"Kill Weight Mud ***REFERENCE ROUNDING RULE #1***"]
["(",{"$f":"'Well Information'!F3","v":0},null,null,null,"psi",null,null,"÷",null,null,5.1999999999999998E-2,null,null,null,null,null,null,"÷",null,null,{"$f":"'Well Information'!F18","v":0},null,null,null,"ft",null,null,") ","+",null,{"$f":"L22","v":0},null,null,null,"ppg",null,null,"=",null,null,{"$f":"IF('Well Information'!F3=0,\" \",ROUNDUP(((B27/0.052/V27)+AF27),1))","v":" "},null,null,null,"ppg"]
[null,"SIDPP",null,null,null,null,null,null,null,null,null,null,null,null,null,null,null,null,null,null,null,"TVD of Well",null,null,null,null,null,null,null,null,null,"Current Mud Weight",null,null,null,null,null,null,null,null,null,"Kill Weight Mud"]
[]
[]
[null,"Maximum Allowable Annular Surface Pressure (After the Well has been Killed)"]
["(",{"$f":"IF(V17=0,AP13,V17)","v":" "},null,null,null,"ppg",null,null,"–",null,null,{"$f":"AP27","v":" "},null,null,null,"ppg",null,null,")","×",null,5.1999999999999998E-2,null,null,null,null,null,null,"×",null,null,{"$f":"V13","v":0},null,null,null,"ft",null,null,"=",null,null,{"$f":"IF('Well Information'!F3=0,\" \",ROUNDDOWN(((B32-L32)*0.052*AF32),0))","v":" "},null,null,null,"psi"]
[null,"MAMW",null,null,null,null,null,null,null,null,null,"Kill Mud Weight",null,null,null,null,null,null,null,null,null,null,null,null,null,null,null,null,null,null,null,"TVD of Casing Shoe",null,null,null,null,null,null,null,null,null,"MAASP After Kill"]
[]
[]
[null,"Initial Circulating Pressure"]
[null,{"$f":"'Well Information'!C20","v":0},null,null,null,"psi",null,null,"+",null,null,{"$f":"B27","v":0},null,null,null,"psi",null,null,"=",null,null,{"$f":"IF('Well Information'!F3=0,\" \",L37+B37)","v":" "},null,null,null,"psi"]
[null,"SCR Pressure",null,null,null,null,null,null,null,null,null,"SIDPP",null,null,null,null,null,null,null,null,null,"ICP"]
[]
[]
[null,"Final Circulating Pressure"]
[null,{"$f":"B37","v":0},null,null,null,"psi",null,null,"×",null,null,{"$f":"AP27","v":" "},null,null,null,"ppg",null,null,"÷",null,null,{"$f":"L22","v":0},null,null,null,"ppg",null,null,"=",null,null,{"$f":"IF('Well Information'!F3=0,\" \",ROUND((B42*L42/V42),0))","v":" "},null,null,null,"psi"]
[null,"SCR Pressure",null,null,null,null,null,null,null,null,null,"Kill Weight Mud",null,null,null,null,null,null,null,null,null,"Current Mud Weight",null,null,null,null,null,null,null,null,null,"FCP"]
[]
[]
[null,"Pump Friction Increase from Surface to Kick Off Point"]
["(",{"$f":"AF42","v":" "},null,null,null,"psi",null,null,"–",null,null,{"$f":"B37","v":0},null,null,null,"psi",null,null,")","×",null,{"$f":"'Well Information'!F10","v":0},null,null,null,"ft",null,null,"÷",null,null,{"$f":"'Well Information'!F12","v":0},null,null,null,"ft",null,null,"=",null,null,{"$f":"IF('Well Information'!F3=0,\" \",ROUND(((B47-L47)*V47/AF47), 0))","v":" "},null,null,null,"psi"]
[null,"FCP",null,null,null,null,null,null,null,null,null,"SCR Pressure",null,null,null,null,null,null,null,null,null,"MD of Kick Off Point",null,null,null,null,null,null,null,null,null,"MD of Well",null,null,null,null,null,null,null,null,null,"Pump Friction Increase\nFrom Surface to KOP"]
[null,"SCR at Kick Off Point"]
[null,{"$f":"B37","v":0},null,null,null,"psi",null,null,"+",null,null,{"$f":"AP47","v":" "},null,null,null,"psi",null,null,"=",null,null,{"$f":"IF('Well Information'!F3=0,\" \",B50+L50)","v":" "},null,null,null,"psi"]
[null,"SCR Pressure",null,null,null,null,null,null,null,null,null,"Pump Friction Increase\nFrom Surface to KOP",null,null,null,null,null,null,null,null,null,"SCR at KOP"]
[null,"Increase in HP from Surface to Kick Off Point"]
["(",{"$f":"AP27","v":" "},null,null,null,"ppg",null,null,"–",null,null,{"$f":"L22","v":0},null,null,null,"ppg",null,null,")","×",null,5.1999999999999998E-2,null,null,null,null,null,null,"×",null,null,{"$f":"'Well Information'!F16","v":0},null,null,null,"ft",null,null,"=",null,null,{"$f":"IF('Well Information'!F3=0,\" \",ROUND(((B53-L53)*0.052*AF53), 0))","v":" "},null,null,null,"psi"]
[null,"Kill Mud Weight",null,null,null,null,null,null,null,null,null,"Current Mud Weight",null,null,null,null,null,null,null,null,null,null,null,null,null,null,null,null,null,null,null,"TVD of Kick Off Point",null,null,null,null,null,null,null,null,null,"Increase in HP from\nSurface to KOP"]
[null,"Remaining SIDPP at Kick Off Point"]
[null,{"$f":"B27","v":0},null,null,null,"psi",null,null,"–",null,null,{"$f":"AP53","v":" "},null,null,null,"psi",null,null,"=",null,null,{"$f":"IF('Well Information'!F3=0,\" \",B56-L56)","v":" "},null,null,null,"psi"]
[null,"SIDPP",null,null,null,null,null,null,null,null,null,"Increase in HP from\nSurface to KOP",null,null,null,null,null,null,null,null,null,"Remaining SIDPP at KOP"]
[null,"Kick Off Point Circulating Pressure"]
[null,{"$f":"V50","v":" "},null,null,null,"psi",null,null,"+",null,null,{"$f":"V56","v":" "},null,null,null,"psi",null,null,"=",null,null,{"$f":"IF('Well Information'!F3=0,\" \",B59+L59)","v":" "},null,null,null,"psi"]
[null,"SCR at KOP",null,null,null,null,null,null,null,null,null,"Remaining SIDPP at KOP",null,null,null,null,null,null,null,null,null,"KOP CP"]
[]
[]
[null,"Pump Friction Increase from Surface to End of Build"]
["(",{"$f":"AF42","v":" "},null,null,null,"psi",null,null,"–",null,null,{"$f":"B37","v":0},null,null,null,"psi",null,null,")","×",null,{"$f":"'Well Information'!F11","v":0},null,null,null,"ft",null,null,"÷",null,null,{"$f":"AF47","v":0},null,null,null,"ft",null,null,"=",null,null,{"$f":"IF('Well Information'!F3=0,\" \",(B64-L64)*V64/AF64)","v":" "},null,null,null,"psi"]
[null,"FCP",null,null,null,null,null,null,null,null,null,"SCR Pressure",null,null,null,null,null,null,null,null,null,"MD of End of Build",null,null,null,null,null,null,null,null,null,"MD of Well",null,null,null,null,null,null,null,null,null,"Pump Friction Increase\nFrom Surface to EOB"]
[null,"SCR at End of Build"]
[null,{"$f":"B37","v":0},null,null,null,"psi",null,null,"+",null,null,{"$f":"AP64","v":" "},null,null,null,"psi",null,null,"=",null,null,{"$f":"IF('Well Information'!F3=0,\" \",B67+L67)","v":" "},null,null,null,"psi"]
[null,"SCR Pressure",null,null,null,null,null,null,null,null,null,"Pump Friction Increase\nFrom Surface to EOB",null,null,null,null,null,null,null,null,null,"SCR at EOB"]
[null,"Increase in HP from Surface to End of Build"]
["(",{"$f":"AP27","v":" "},null,null,null,"ppg",null,null,"–",null,null,{"$f":"L22","v":0},null,null,null,"ppg",null,null,")","×",null,5.1999999999999998E-2,null,null,null,null,null,null,"×",null,null,{"$f":"'Well Information'!F17","v":0},null,null,null,"ft",null,null,"=",null,null,{"$f":"IF('Well Information'!F3=0,\" \",ROUND(((B70-L70)*0.052*AF70), 0))","v":" "},null,null,null,"psi"]
[null,"Kill Mud Weight",null,null,null,null,null,null,null,null,null,"Current Mud Weight",null,null,null,null,null,null,null,null,null,null,null,null,null,null,null,null,null,null,null,"TVD of End of Build",null,null,null,null,null,null,null,null,null,"Increase in HP from\nSurface to EOB"]
[null,"Remaining SIDPP at End of Build"]
[null,{"$f":"B27","v":0},null,null,null,"psi",null,null,"–",null,null,{"$f":"AP70","v":" "},null,null,null,"psi",null,null,"=",null,null,{"$f":"IF('Well Information'!F3=0,\" \",B73-L73)","v":" "},null,null,null,"psi"]
[null,"SIDPP",null,null,null,null,null,null,null,null,null,"Increase in HP from\nSurface to EOB",null,null,null,null,null,null,null,null,null,"Remaining SIDPP at EOB"]
[null,"End of Build Circulating Pressure"]
[null,{"$f":"V67","v":" "},null,null,null,"psi",null,null,"+",null,null,{"$f":"V73","v":" "},null,null,null,"psi",null,null,"=",null,null,{"$f":"IF('Well Information'!F3=0,\" \",ROUND(B76+L76,0))","v":" "},null,null,null,"psi"]
[null,"SCR at EOB",null,null,null,null,null,null,null,null,null,"Remaining SIDPP at EOB",null,null,null,null,null,null,null,null,null,"EOB CP"]

{"sheet":"Pg 3-4","index":6,"n_rows":74,"n_cols":52,"rows_kept":74,"cut":false,"hidden":true,"merged":[[39,31,40,37],[33,31,33,37],[38,31,38,37],[22,44,22,46],[23,0,23,46],[22,0,22,6],[22,14,22,16],[22,24,22,26],[22,34,22,36],[22,27,22,30],[22,17,22,20],[22,21,22,23],[33,1,33,7],[33,11,33,17],[22,31,22,33],[38,1,38,7],[38,11,38,17],[38,21,38,27],[37,1,37,4],[26,1,26,54],[27,8,27,10],[27,21,27,27],[27,28,27,30],[32,8,32,10],[18,34,18,36],[18,44,18,46],[18,47,18,50],[18,51,18,53],[18,37,18,40],[18,41,18,43],[18,27,18,30],[18,31,18,33],[18,17,18,20],[18,21,18,23],[20,44,20,46],[20,47,20,50],[20,51,20,53],[20,37,20,40],[20,41,20,43],[20,27,20,30],[20,31,20,33],[20,17,20,20],[20,21,20,23],[20,24,20,26],[20,34,20,36],[8,31,8,33],[11,1,11,54],[8,21,8,23],[17,27,17,33],[17,34,17,36],[17,37,17,43],[2,47,2,50],[2,51,2,53],[12,21,12,24],[12,25,12,27],[6,47,6,50],[6,51,6,53],[4,47,4,50],[4,51,4,53],[7,51,7,53],[6,0,6,6],[6,14,6,16],[6,24,6,26],[6,34,6,36],[6,44,6,46],[17,44,17,46],[17,47,17,53],[3,44,3,46],[2,37,2,40],[6,37,6,40],[6,41,6,43],[2,17,2,20],[2,21,2,23],[3,17,3,20],[3,21,3,23],[3,24,3,26],[3,34,3,36],[1,24,1,26],[1,27,1,33],[4,0,4,46],[2,7,2,10],[2,11,2,13],[3,27,3,30],[3,31,3,33],[2,27,2,30],[2,31,2,33],[3,0,3,6],[3,14,3,16],[2,34,2,36],[2,44,2,46],[0,0,0,54],[2,41,2,43],[3,37,3,40],[3,41,3,43],[7,37,7,40],[7,41,7,43],[8,37,8,40],[8,41,8,43],[9,47,9,50],[9,51,9,53],[8,47,8,50],[8,51,8,53],[7,47,7,50],[1,34,1,36],[1,37,1,43],[1,44,1,46],[1,47,1,53],[2,0,2,6],[2,14,2,16],[2,24,2,26],[1,0,1,6],[1,7,1,13],[1,14,1,16],[1,17,1,23],[19,34,19,36],[19,44,19,46],[19,47,19,50],[19,51,19,53],[19,37,19,40],[19,41,19,43],[19,27,19,30],[19,31,19,33],[19,17,19,20],[19,21,19,23],[21,47,21,50],[21,51,21,53],[37,15,37,17],[37,8,37,10],[27,1,27,4],[27,5,27,7],[27,11,27,14],[27,15,27,17],[31,1,31,54],[27,31,27,34],[27,35,27,37],[28,1,28,7],[28,11,28,17],[28,21,28,27],[28,31,28,37],[32,11,32,14],[32,15,32,17],[32,1,32,4],[32,5,32,7],[37,21,37,27],[37,28,37,30],[32,21,32,27],[32,28,32,30],[29,31,30,37],[49,1,49,54],[55,1,55,9],[55,10,55,18],[50,8,50,10],[47,21,48,27],[47,1,48,7],[51,1,52,7],[50,21,50,24],[50,25,50,27],[50,1,50,4],[58,1,58,3],[58,4,58,9],[50,11,50,17],[50,18,50,20],[51,21,52,27],[60,4,60,9],[60,1,60,3],[59,4,59,9],[59,1,59,3],[71,10,71,12],[71,13,71,18],[56,1,56,9],[65,1,65,3],[65,4,65,9],[67,1,67,3],[69,1,69,3],[69,4,69,9],[70,1,70,3],[70,4,70,9],[71,1,71,3],[71,4,71,9],[61,1,61,3],[60,10,60,12],[60,13,60,18],[68,1,68,3],[68,4,68,9],[62,1,62,3],[62,4,62,9],[63,1,63,3],[63,4,63,9],[64,1,64,3],[64,4,64,9],[61,4,61,9],[22,51,22,53],[22,37,22,40],[22,41,22,43],[16,0,16,54],[41,1,41,54],[46,11,46,17],[46,18,46,20],[42,5,42,7],[42,1,42,4],[42,8,42,10],[46,1,46,4],[46,5,46,7],[42,18,42,20],[43,1,43,7],[45,1,45,54],[42,21,42,24],[42,25,42,27],[46,8,46,10],[46,21,46,24],[46,25,46,27],[42,11,42,17],[43,21,44,27],[20,14,20,16],[34,31,35,37],[7,0,7,6],[7,14,7,16],[7,24,7,26],[3,7,3,10],[3,11,3,13],[6,17,6,20],[6,21,6,23],[6,7,6,10],[6,11,6,13],[7,17,7,20],[7,21,7,23],[7,7,7,10],[7,11,7,13],[66,13,66,18],[64,10,64,12],[64,13,64,18],[65,10,65,12],[65,13,65,18],[8,27,8,30],[17,17,17,23],[17,24,17,26],[13,1,13,7],[13,11,13,17],[37,5,37,7],[37,11,37,14],[17,0,17,6],[12,1,12,4],[12,5,12,7],[21,0,21,46],[19,0,19,6],[19,14,19,16],[8,0,8,6],[50,5,50,7],[66,1,66,3],[66,4,66,9],[57,1,57,3],[57,4,57,9],[20,0,20,6],[13,21,13,27],[20,7,20,10],[20,11,20,13],[8,7,8,10],[8,11,8,13],[12,8,12,10],[12,18,12,20],[17,7,17,13],[17,14,17,16],[8,17,8,20],[12,11,12,14],[12,15,12,17],[8,14,8,16],[8,24,8,26],[19,24,19,26],[19,7,19,10],[19,11,19,13],[18,0,18,6],[18,14,18,16],[18,24,18,26],[18,7,18,10],[18,11,18,13],[67,10,67,12],[67,13,67,18],[3,47,3,50],[3,51,3,53],[33,21,33,27],[36,1,36,54],[32,35,32,37],[37,35,37,37],[37,31,37,34],[32,31,32,34],[7,27,7,30],[7,31,7,33],[6,27,6,30],[6,31,6,33],[22,7,22,10],[22,11,22,13],[23,47,23,50],[23,51,23,53],[22,47,22,50],[8,34,8,36],[8,44,8,46],[9,0,9,46],[7,34,7,36],[7,44,7,46],[68,10,68,12],[68,13,68,18],[55,20,55,53],[56,10,56,12],[56,13,56,18],[56,20,71,53],[67,4,67,9],[69,10,69,12],[69,13,69,18],[70,10,70,12],[70,13,70,18],[57,10,57,12],[57,13,57,18],[58,10,58,12],[58,13,58,18],[59,10,59,12],[59,13,59,18],[62,10,62,12],[62,13,62,18],[63,10,63,12],[63,13,63,18],[61,10,61,12],[61,13,61,18],[66,10,66,12]]}
["Volume and Stroke Calculations for Drill String"]
[null,null,null,null,null,null,null,"Length (MD)",null,null,null,null,null,null,"×",null,null,"Internal\nCapacity",null,null,null,null,null,null,"=",null,null,"Volume",null,null,null,null,null,null,"÷",null,null,"Pump\nOutput",null,null,null,null,null,null,"=",null,null,"Strokes"]
["DP (Surf. to KOP)",null,null,null,null,null,null,{"$f":"'Well Information'!F10","v":0},null,null,null,"ft",null,null,"×",null,null,{"$f":"ROUND('Well Information'!I11^2/1029.4,5)","v":0},null,null,null,"bbls/ft",null,null,"=",null,null,{"$f":"ROUND(H3*R3,1)","v":0},null,null,null,"bbls",null,null,"÷",null,null,{"$f":"IF('Well Information'!C16=\"Triplex\",Pump!E2,Pump!E3)","v":0},null,null,null,"bbls/stk",null,null,"=",null,null,{"$f":"IF('Well Information'!F3=0,\" \",ROUNDUP(AB3/AL3,0))","v":" "},null,null,null,"stks"]
["DP (KOP to EOB)",null,null,null,null,null,null,{"$f":"'Well Information'!F11-'Well Information'!F10","v":0},null,null,null,"ft",null,null,"×",null,null,{"$f":"R3","v":0},null,null,null,"bbls/ft",null,null,"=",null,null,{"$f":"ROUND(H4*R4,1)","v":0},null,null,null,"bbls",null,null,"÷",null,null,{"$f":"$AL$3","v":0},null,null,null,"bbls/stk",null,null,"=",null,null,{"$f":"IF('Well Information'!F3=0,\" \",ROUNDUP(AB4/AL4,0))","v":" "},null,null,null,"stks"]
["Total Strokes from Surface to EOB (add two values above)",null,null,null,null,null,null,null,null,null,null,null,null,null,null,null,null,null,null,null,null,null,null,null,null,null,null,null,null,null,null,null,null,null,null,null,null,null,null,null,null,null,null,null,null,null,null,{"$f":"IF('Well Information'!F3=0,\" \",AV4+AV3)","v":" "},null,null,null,"stks"]
[]
["DP (EOB to BHA)",null,null,null,null,null,null,{"$f":"'Well Information'!F12-'Well Information'!I16-'Well Information'!I21-'Well Information'!F11","v":0},null,null,null,"ft",null,null,"×",null,null,{"$f":"R3","v":0},null,null,null,"bbls/ft",null,null,"=",null,null,{"$f":"ROUND(H7*R7,1)","v":0},null,null,null,"bbls",null,null,"÷",null,null,{"$f":"$AL$3","v":0},null,null,null,"bbls/stk",null,null,"=",null,null,{"$f":"IF('Well Information'!F3=0,\" \",ROUNDUP(AB7/AL7,0))","v":" "},null,null,null,"stks"]
["HWDP",null,null,null,null,null,null,{"$f":"'Well Information'!I16","v":0},null,null,null,"ft",null,null,"×",null,null,{"$f":"ROUND('Well Information'!I15^2/1029.4,5)","v":0},null,null,null,"bbls/ft",null,null,"=",null,null,{"$f":"ROUND(H8*R8,1)","v":0},null,null,null,"bbls",null,null,"÷",null,null,{"$f":"$AL$3","v":0},null,null,null,"bbls/stk",null,null,"=",null,null,{"$f":"IF('Well Information'!F3=0,\" \",ROUNDUP(AB8/AL8,0))","v":" "},null,null,null,"stks"]
["Drill Collars",null,null,null,null,null,null,{"$f":"'Well Information'!I21","v":0},null,null,null,"ft",null,null,"×",null,null,{"$f":"ROUND('Well Information'!I20^2/1029.4,5)","v":0},null,null,null,"bbls/ft",null,null,"=",null,null,{"$f":"ROUND(H9*R9,1)","v":0},null,null,null,"bbls",null,null,"÷",null,null,{"$f":"$AL$3","v":0},null,null,null,"bbls/stk",null,null,"=",null,null,{"$f":"IF('Well Information'!F3=0,\" \",ROUNDUP(AB9/AL9,0))","v":" "},null,null,null,"stks"]
["Total Strokes from EOB to Bit (add three values above)",null,null,null,null,null,null,null,null,null,null,null,null,null,null,null,null,null,null,null,null,null,null,null,null,null,null,null,null,null,null,null,null,null,null,null,null,null,null,null,null,null,null,null,null,null,null,{"$f":"IF('Well Information'!F3=0,\" \",AV9+AV8+AV7)","v":" "},null,null,null,"stks"]
[]
[null,"Total Strokes from Surface to Bit"]
[null,{"$f":"AV5","v":" "},null,null,null,"stks",null,null,"+",null,null,{"$f":"AV10","v":" "},null,null,null,"stks",null,null,"=",null,null,{"$f":"IF('Well Information'!F3=0,\" \",AV10+AV5)","v":" "},null,null,null,"stks"]
[null,"Total Strokes from \nSurface to EOB",null,null,null,null,null,null,null,null,null,"Total Strokes from\nEOB to Bit",null,null,null,null,null,null,null,null,null,"Total Strokes from\nSurface to Bit"]
[]
[]
["Volume and Stroke Calculations for Annulus"]
[null,null,null,null,null,null,null,"Length (MD)",null,null,null,null,null,null,"×",null,null,"Annular\nCapacity",null,null,null,null,null,null,"=",null,null,"Volume",null,null,null,null,null,null,"÷",null,null,"Pump\nOutput",null,null,null,null,null,null,"=",null,null,"Strokes"]
["OH/DC",null,null,null,null,null,null,{"$f":"'Well Information'!I21","v":0},null,null,null,"ft",null,null,"×",null,null,{"$f":"ROUND((('Well Information'!F21^2)-('Well Information'!I19^2))/1029.4,5)","v":0},null,null,null,"bbls/ft",null,null,"=",null,null,{"$f":"ROUND(H19*R19,1)","v":0},null,null,null,"bbls",null,null,"÷",null,null,{"$f":"$AL$3","v":0},null,null,null,"bbls/stk",null,null,"=",null,null,{"$f":"IF('Well Information'!F3=0,\" \",ROUNDUP(AB19/AL19,0))","v":" "},null,null,null,"stks"]
["OH/HWDP",null,null,null,null,null,null,{"$f":"'Well Information'!I16","v":0},null,null,null,"ft",null,null,"×",null,null,{"$f":"ROUND((('Well Information'!F21^2)-('Well Information'!I14^2))/1029.4,5)","v":0},null,null,null,"bbls/ft",null,null,"=",null,null,{"$f":"ROUND(H20*R20,1)","v":0},null,null,null,"bbls",null,null,"÷",null,null,{"$f":"$AL$3","v":0},null,null,null,"bbls/stk",null,null,"=",null,null,{"$f":"IF('Well Information'!F3=0,\" \",ROUNDUP(AB20/AL20,0))","v":" "},null,null,null,"stks"]
["OH/DP",null,null,null,null,null,null,{"$f":"'Well Information'!F12-'Well Information'!F9-'Well Information'!I16-'Well Information'!I21","v":0},null,null,null,"ft",null,null,"×",null,null,{"$f":"ROUND((('Well Information'!F21^2)-('Well Information'!I10^2))/1029.4,5)","v":0},null,null,null,"bbls/ft",null,null,"=",null,null,{"$f":"ROUND(H21*R21,1)","v":0},null,null,null,"bbls",null,null,"÷",null,null,{"$f":"$AL$3","v":0},null,null,null,"bbls/stk",null,null,"=",null,null,{"$f":"IF('Well Information'!F3=0,\" \",ROUNDUP(AB21/AL21,0))","v":" "},null,null,null,"stks"]
["Total Strokes from Bit to Shoe (add three values above)",null,null,null,null,null,null,null,null,null,null,null,null,null,null,null,null,null,null,null,null,null,null,null,null,null,null,null,null,null,null,null,null,null,null,null,null,null,null,null,null,null,null,null,null,null,null,{"$f":"IF('Well Information'!F3=0,\" \",SUM(AV19:AY21))","v":" "},null,null,null,"stks"]
["Casing/DP",null,null,null,null,null,null,{"$f":"'Well Information'!F9","v":0},null,null,null,"ft",null,null,"×",null,null,{"$f":"ROUND((('Well Information'!I7^2)-('Well Information'!I10^2))/1029.4,5)","v":0},null,null,null,"bbls/ft",null,null,"=",null,null,{"$f":"ROUND(H23*R23,1)","v":0},null,null,null,"bbls",null,null,"÷",null,null,{"$f":"$AL$3","v":0},null,null,null,"bbls/stk",null,null,"=",null,null,{"$f":"IF('Well Information'!F3=0,\" \",ROUNDUP(AB23/AL23,0))","v":" "},null,null,null,"stks"]
["Total Strokes from Bit to Surface (add two values above)",null,null,null,null,null,null,null,null,null,null,null,null,null,null,null,null,null,null,null,null,null,null,null,null,null,null,null,null,null,null,null,null,null,null,null,null,null,null,null,null,null,null,null,null,null,null,{"$f":"IF('Well Information'!F3=0,\" \",AV23+AV22)","v":" "},null,null,null,"stks"]
[]
[]
[null,"Pressure Drop per Step from Surface to Kick Off Point ***REFERENCE ROUNDING RULE #3***"]
["(",{"$f":"'Pg 1-2'!V37","v":" "},null,null,null,"psi",null,null,"–",null,null,{"$f":"'Pg 1-2'!V59","v":" "},null,null,null,"psi",null,null,") ","÷",null,5,null,null,null,null,null,null,"=",null,null,{"$f":"IF('Well Information'!F3=0,\" \",ROUNDDOWN((B28-L28)/V28,0))","v":" "},null,null,null,"psi/step"]
[null,"ICP",null,null,null,null,null,null,null,null,null,"KOP CP",null,null,null,null,null,null,null,null,null,null,null,null,null,null,null,null,null,null,null,"Pressure Drop per Step"]
[null,null,null,null,null,null,null,null,null,null,null,null,null,null,null,null,null,null,null,null,null,null,null,null,null,null,null,null,null,null,null,"from Surface to KOP"]
[]
[null,"Pressure Drop per Step from Kick Off Point to End of Build ***REFERENCE ROUNDING RULE #3***"]
["(",{"$f":"L28","v":" "},null,null,null,"psi",null,null,"–",null,null,{"$f":"'Pg 1-2'!V76","v":" "},null,null,null,"psi",null,null,") ","÷",null,5,null,null,null,null,null,null,"=",null,null,{"$f":"IF('Well Information'!F3=0,\" \",ROUNDDOWN((B33-L33)/V33,0))","v":" "},null,null,null,"psi/step"]
[null,"KOP CP",null,null,null,null,null,null,null,null,null,"EOB CP",null,null,null,null,null,null,null,null,null,null,null,null,null,null,null,null,null,null,null,"Pressure Drop per Step"]
[null,null,null,null,null,null,null,null,null,null,null,null,null,null,null,null,null,null,null,null,null,null,null,null,null,null,null,null,null,null,null,"from KOP to EOB"]
[]
[null,"Pressure Drop per Step from End of Build to Bit ***REFERENCE ROUNDING RULE #3***"]
["(",{"$f":"L33","v":" "},null,null,null,"psi",null,null,"–",null,null,{"$f":"'Pg 1-2'!AF42","v":" "},null,null,null,"psi",null,null,") ","÷",null,5,null,null,null,null,null,null,"=",null,null,{"$f":"IF('Well Information'!F3=0,\" \",ROUNDDOWN((B38-L38)/V38,0))","v":" "},null,null,null,"psi/step"]
[null,"EOB CP",null,null,null,null,null,null,null,null,null,"FCP",null,null,null,null,null,null,null,null,null,null,null,null,null,null,null,null,null,null,null,"Pressure Drop per Step"]
[null,null,null,null,null,null,null,null,null,null,null,null,null,null,null,null,null,null,null,null,null,null,null,null,null,null,null,null,null,null,null,"from EOB to Bit"]
[]
[null,"Pump Strokes per Step from Surface to Kick Off Point ***REFERENCE ROUNDING RULE #3***"]
[null,{"$f":"AV3","v":" "},null,null,null,"stks",null,null," ÷",null,null,5,null,null,null,null,null,null,"=",null,null,{"$f":"IF('Well Information'!F3=0,\" \",ROUNDDOWN(B43/L43,0))","v":" "},null,null,null,"stks/step"]
[null,"Total Strokes from\nSurface to KOP",null,null,null,null,null,null,null,null,null,null,null,null,null,null,null,null,null,null,null,"Pump Strokes per Step\nfrom Surface to KOP"]
[]
[null,"Pump Strokes per Step from Kick Off Point to End of Build ***REFERENCE ROUNDING RULE #3***"]
[null,{"$f":"AV4","v":" "},null,null,null,"stks",null,null," ÷",null,null,5,null,null,null,null,null,null,"=",null,null,{"$f":"IF('Well Information'!F3=0,\" \",ROUNDDOWN(B47/L47,0))","v":" "},null,null,null,"stks/step"]
[null,"Total Strokes from\nKOP to EOB",null,null,null,null,null,null,null,null,null,null,null,null,null,null,null,null,null,null,null,"Pump Strokes per Step\nfrom KOP to EOB"]
[]
[null,"Pump Strokes per Step from End of Build to Bit ***REFERENCE ROUNDING RULE #3***"]
[null,{"$f":"L13","v":" "},null,null,null,"stks",null,null," ÷",null,null,5,null,null,null,null,null,null,"=",null,null,{"$f":"IF('Well Information'!F3=0,\" \",ROUNDDOWN(B51/L51,0))","v":" "},null,null,null,"stks/step"]
[null,"Total Strokes from\nEOB to Bit",null,null,null,null,null,null,null,null,null,null,null,null,null,null,null,null,null,null,null,"Pump Strokes per Step\nfrom EOB to Bit"]
[]
[]
[]
[null,"Strokes",null,null,null,null,null,null,null,null,"Pressure",null,null,null,null,null,null,null,null,null,"Drill Pipe Pressure Schedule"]
[null,0,null,null,null,null,null,null,null,null,"ICP",null,null,{"$f":"'Pg 1-2'!V37","v":" "},null,null,null,null,null,null,"Instructions for the Strokes Column:\nInput the Total number of Strokes from Surface to KOP in the box marked \"Strokes to KOP.\"  Add the Pump Strokes per Step from Surface to KOP to the box underneath the zero and to each subsequent box until Strokes to KOP has been reached.  Any \"remainder\" can be caught up at the Strokes to KOP.\n\nInput the Total number of Strokes from Surface to EOB in the box marked \"Strokes to EOB.\"  Add the Pump Strokes per Step from KOP to EOB to the box underneath the Strokes to KOP box and to each subsequent box until Strokes to EOB has been reached.  Any \"remainder\" can be caught up at the Strokes to EOB.\n\nInput the Total number of Strokes from Surface to Bit in the box marked \"Strokes to Bit.\"  Add the Pump Strokes per Step from EOB to Bit to the box underneath the Strokes to EOB box and to each subsequent box until Strokes to Bit has been reached.  Any \"remainder\" can be caught up at the Strokes to Bit.\n\nInstructions for the Pressure Column: \nInput the ICP, KOP CP, EOB CP, and FCP into the marked boxes.\n\nSubtract the Pressure Drop per Step from Surface to KOP from the ICP and from each subsequent box until the KOP CP has been reached.  Any \"remainder\" can be caught up at the KOP CP.\n\nSubtract the Pressure Drop per Step from KOP to EOB from the KOP CP and from each subsequent box until the EOB CP has been reached.  Any \"remainder\" can be caught up at the EOB CP.\n\nSubtract the Pressure Drop per Step from EOB to Bit from the EOB CP and from each subsequent box until the FCP has been reached.  Any \"remainder\" can be caught up at the FCP."]
[null,null,null,null,{"$f":"IF('Well Information'!F3=0,\" \",B57+$V$43)","v":" "},null,null,null,null,null,null,null,null,{"$f":"IF('Well Information'!F3=0,\" \",N57-$AF$28)","v":" "}]
[null,null,null,null,{"$f":"IF('Well Information'!F3=0,\" \",E58+$V$43)","v":" "},null,null,null,null,null,null,null,null,{"$f":"IF('Well Information'!F3=0,\" \",N58-$AF$28)","v":" "}]
[null,null,null,null,{"$f":"IF('Well Information'!F3=0,\" \",E59+$V$43)","v":" "},null,null,null,null,null,null,null,null,{"$f":"IF('Well Information'!F3=0,\" \",N59-$AF$28)","v":" "}]
[null,null,null,null,{"$f":"IF('Well Information'!F3=0,\" \",E60+$V$43)","v":" "},null,null,null,null,null,null,null,null,{"$f":"IF('Well Information'!F3=0,\" \",N60-$AF$28)","v":" "}]
[null,"Strokes \nto KOP",null,null,{"$f":"AV3","v":" "},null,null,null,null,null,"KOP CP",null,null,{"$f":"'Pg 1-2'!V59","v":" "}]
[null,null,null,null,{"$f":"IF('Well Information'!F3=0,\" \",E62+$V$47)","v":" "},null,null,null,null,null,null,null,null,{"$f":"IF('Well Information'!F3=0,\" \",N62-$AF$33)","v":" "}]
[null,null,null,null,{"$f":"IF('Well Information'!F3=0,\" \",E63+$V$47)","v":" "},null,null,null,null,null,null,null,null,{"$f":"IF('Well Information'!F3=0,\" \",N63-$AF$33)","v":" "}]
[null,null,null,null,{"$f":"IF('Well Information'!F3=0,\" \",E64+$V$47)","v":" "},null,null,null,null,null,null,null,null,{"$f":"IF('Well Information'!F3=0,\" \",N64-$AF$33)","v":" "}]
[null,null,null,null,{"$f":"IF('Well Information'!F3=0,\" \",E65+$V$47)","v":" "},null,null,null,null,null,null,null,null,{"$f":"IF('Well Information'!F3=0,\" \",N65-$AF$33)","v":" "}]
[null,"Strokes \nto EOB",null,null,{"$f":"AV5","v":" "},null,null,null,null,null,"EOB CP",null,null,{"$f":"'Pg 1-2'!V76","v":" "}]
[null,null,null,null,{"$f":"IF('Well Information'!F3=0,\" \",E67+$V$51)","v":" "},null,null,null,null,null,null,null,null,{"$f":"IF('Well Information'!F3=0,\" \",N67-$AF$38)","v":" "}]
[null,null,null,null,{"$f":"IF('Well Information'!F3=0,\" \",E68+$V$51)","v":" "},null,null,null,null,null,null,null,null,{"$f":"IF('Well Information'!F3=0,\" \",N68-$AF$38)","v":" "}]
[null,null,null,null,{"$f":"IF('Well Information'!F3=0,\" \",E69+$V$51)","v":" "},null,null,null,null,null,null,null,null,{"$f":"IF('Well Information'!F3=0,\" \",N69-$AF$38)","v":" "}]
[null,null,null,null,{"$f":"IF('Well Information'!F3=0,\" \",E70+$V$51)","v":" "},null,null,null,null,null,null,null,null,{"$f":"IF('Well Information'!F3=0,\" \",N70-$AF$38)","v":" "}]
[null,"Strokes\nto Bit",null,null,{"$f":"V13","v":" "},null,null,null,null,null,"FCP",null,null,{"$f":"'Pg 1-2'!AF42","v":" "}]
[]
[null,"Notes:"]